[Event "*** Titled Tuesday Blitz"]
[Site "Chess.com"]
[Date "2020.11.10"]
[Round "5"]
[White "temus_galaktionov"]
[Black "SaqoChess_Twitch"]
[Result "0-1"]
[WhiteElo "2615"]
[BlackElo "2436"]
[TimeControl "180+1"]
[EndTime "10:56:04 PST"]
[Termination "SaqoChess_Twitch won by resignation"]

1. d4 {[%clk 0:02:01.4]} 1... d5 {[%clk 0:02:55.1]} 2. Nf3 {[%clk 0:01:58.6]}
2... Nf6 {[%clk 0:02:54.2]} 3. c4 {[%clk 0:01:59.4]} 3... e6 {[%clk 0:02:54.4]}
4. Nc3 {[%clk 0:01:55.2]} 4... Be7 {[%clk 0:02:54.6]} 5. Bf4 {[%clk 0:01:54.3]}
5... c5 {[%clk 0:02:51.1]} 6. e3 {[%clk 0:01:55.2]} 6... cxd4 {[%clk 0:02:49.9]}
7. Nxd4 {[%clk 0:01:54.5]} 7... Nc6 {[%clk 0:02:49.4]} 8. cxd5 {[%clk
0:01:53.6]} 8... Nxd5 {[%clk 0:02:48.7]} 9. Nxd5 {[%clk 0:01:51.6]} 9... Qxd5
{[%clk 0:02:47.7]} 10. Nxc6 {[%clk 0:01:49.7]} 10... Qxc6 {[%clk 0:02:47.9]} 11.
a3 {[%clk 0:01:34.6]} 11... O-O {[%clk 0:02:42.9]} 12. Be2 {[%clk 0:01:21.9]}
12... Qxg2 {[%clk 0:02:35.9]} 13. Bf3 {[%clk 0:01:20.1]} 13... Qg6 {[%clk
0:02:36.3]} 14. Ke2 {[%clk 0:01:17.7]} 14... Rd8 {[%clk 0:02:29.7]} 15. Qb3
{[%clk 0:01:16.7]} 15... e5 {[%clk 0:02:19.7]} 16. Rhg1 {[%clk 0:01:06.5]} 16...
Qa6+ {[%clk 0:02:16.9]} 17. Ke1 {[%clk 0:01:01.2]} 17... exf4 {[%clk 0:02:16.6]}
18. Bd5 {[%clk 0:00:34.3]} 18... Qa5+ {[%clk 0:02:12.6]} 19. Ke2 {[%clk
0:00:28.4]} 19... Qxd5 {[%clk 0:02:12.2]} 20. Qc3 {[%clk 0:00:29.2]} 20... f3+
{[%clk 0:02:10.5]} 21. Kf1 {[%clk 0:00:28]} 21... Qd1+ {[%clk 0:02:07.7]} 0-1

[Event "*** Titled Tuesday Blitz"]
[Site "Chess.com"]
[Date "2020.11.10"]
[Round "5"]
[White "BegmuratovKh2010"]
[Black "tdf98pantani"]
[Result "0-1"]
[WhiteElo "2442"]
[BlackElo "2719"]
[TimeControl "180+1"]
[EndTime "10:56:05 PST"]
[Termination "tdf98pantani won by resignation"]

1. d4 {[%clk 0:03:00.9]} 1... Nf6 {[%clk 0:02:59.4]} 2. c4 {[%clk 0:03:00.6]}
2... g6 {[%clk 0:02:59.7]} 3. Nc3 {[%clk 0:02:56.4]} 3... Bg7 {[%clk 0:02:59.9]}
4. g3 {[%clk 0:02:56.6]} 4... O-O {[%clk 0:02:59.4]} 5. Bg2 {[%clk 0:02:56.5]}
5... d6 {[%clk 0:02:59.8]} 6. Nf3 {[%clk 0:02:57.1]} 6... Nbd7 {[%clk
0:03:00.1]} 7. O-O {[%clk 0:02:56.5]} 7... e5 {[%clk 0:03:00.4]} 8. dxe5 {[%clk
0:02:52.9]} 8... dxe5 {[%clk 0:03:00.7]} 9. Bg5 {[%clk 0:02:51.8]} 9... c6
{[%clk 0:03:00]} 10. h3 {[%clk 0:02:22.4]} 10... h6 {[%clk 0:02:59.5]} 11. Be3
{[%clk 0:02:21.9]} 11... Qe7 {[%clk 0:02:58.6]} 12. Nd2 {[%clk 0:02:19.9]} 12...
Nc5 {[%clk 0:02:56.9]} 13. b4 {[%clk 0:02:06.6]} 13... Ne6 {[%clk 0:02:56.9]}
14. c5 {[%clk 0:02:06.6]} 14... Rd8 {[%clk 0:02:53.8]} 15. Qc1 {[%clk
0:01:59.3]} 15... Nd4 {[%clk 0:02:52.6]} 16. Nc4 {[%clk 0:01:58.6]} 16... Nd5
{[%clk 0:02:42.7]} 17. Re1 {[%clk 0:01:50.5]} 17... Nxb4 {[%clk 0:02:40.3]} 18.
Bxh6 {[%clk 0:01:08.6]} 18... Nbc2 {[%clk 0:02:32.3]} 19. Bxg7 {[%clk
0:01:05.5]} 19... Kxg7 {[%clk 0:02:31.9]} 20. Nd6 {[%clk 0:00:27]} 20... Nxe1
{[%clk 0:02:30.4]} 21. Qxe1 {[%clk 0:00:25.9]} 21... Nc2 {[%clk 0:02:29.3]} 22.
Qc1 {[%clk 0:00:26]} 22... Nxa1 {[%clk 0:02:29.3]} 23. Qxa1 {[%clk 0:00:26.9]}
23... Rxd6 {[%clk 0:02:19.7]} 24. cxd6 {[%clk 0:00:27.8]} 24... Qxd6 {[%clk
0:02:20.3]} 25. Ne4 {[%clk 0:00:25.4]} 25... Qd4 {[%clk 0:02:20.5]} 0-1

[Event "*** Titled Tuesday Blitz"]
[Site "Chess.com"]
[Date "2020.11.10"]
[Round "5"]
[White "Paralinch"]
[Black "KononenkoD"]
[Result "1-0"]
[WhiteElo "2828"]
[BlackElo "2599"]
[TimeControl "180+1"]
[EndTime "10:56:14 PST"]
[Termination "Paralinch won by resignation"]

1. e4 {[%clk 0:03:00.9]} 1... c6 {[%clk 0:02:58.7]} 2. d4 {[%clk 0:03:00.8]}
2... d5 {[%clk 0:02:58.5]} 3. Nd2 {[%clk 0:03:01.5]} 3... dxe4 {[%clk
0:02:55.6]} 4. Nxe4 {[%clk 0:03:02.4]} 4... Bf5 {[%clk 0:02:55.4]} 5. Ng3 {[%clk
0:03:02.6]} 5... Bg6 {[%clk 0:02:55.8]} 6. h4 {[%clk 0:03:03.3]} 6... h6 {[%clk
0:02:55.5]} 7. Nf3 {[%clk 0:03:04]} 7... Nd7 {[%clk 0:02:53.9]} 8. h5 {[%clk
0:03:04.4]} 8... Bh7 {[%clk 0:02:54.3]} 9. Bd3 {[%clk 0:03:05.1]} 9... Bxd3
{[%clk 0:02:54.5]} 10. Qxd3 {[%clk 0:03:06]} 10... e6 {[%clk 0:02:54.3]} 11. Bd2
{[%clk 0:03:06.6]} 11... Ngf6 {[%clk 0:02:52.1]} 12. O-O-O {[%clk 0:03:07.1]}
12... Be7 {[%clk 0:02:52.3]} 13. Kb1 {[%clk 0:03:07.2]} 13... c5 {[%clk
0:02:47.2]} 14. Ne4 {[%clk 0:03:06.2]} 14... cxd4 {[%clk 0:02:40.5]} 15. Nxd4
{[%clk 0:02:59.9]} 15... O-O {[%clk 0:02:23.3]} 16. Nxf6+ {[%clk 0:02:58.5]}
16... Bxf6 {[%clk 0:02:20.1]} 17. Nb5 {[%clk 0:02:37.8]} 17... Nc5 {[%clk
0:02:09.2]} 18. Qxd8 {[%clk 0:02:35.4]} 18... Rfxd8 {[%clk 0:02:06.6]} 19. Be3
{[%clk 0:02:36.3]} 19... Na4 {[%clk 0:01:53]} 20. c3 {[%clk 0:02:36.1]} 20... a6
{[%clk 0:01:42.1]} 21. Nd6 {[%clk 0:02:36.2]} 21... Be5 {[%clk 0:01:26.9]} 22.
Nxb7 {[%clk 0:02:19.1]} 22... Rd5 {[%clk 0:00:54.8]} 23. Rxd5 {[%clk 0:02:13.8]}
23... exd5 {[%clk 0:00:54.6]} 24. Rh4 {[%clk 0:02:14.4]} 24... Rb8 {[%clk
0:00:45.6]} 25. Rxa4 {[%clk 0:02:13.8]} 25... Rxb7 {[%clk 0:00:45.9]} 26. Rxa6
{[%clk 0:02:09.8]} 26... Bxc3 {[%clk 0:00:44.5]} 27. Rb6 {[%clk 0:02:10.3]}
27... Rxb6 {[%clk 0:00:41.1]} 28. Bxb6 {[%clk 0:02:11.2]} 28... Be5 {[%clk
0:00:37.9]} 29. a4 {[%clk 0:02:10.4]} 29... Kf8 {[%clk 0:00:37.9]} 30. a5 {[%clk
0:02:10.7]} 30... Ke7 {[%clk 0:00:38.8]} 31. a6 {[%clk 0:02:11.1]} 31... Bb8
{[%clk 0:00:38.8]} 32. a7 {[%clk 0:02:11.3]} 32... Bxa7 {[%clk 0:00:39.1]} 33.
Bxa7 {[%clk 0:02:12.2]} 1-0

[Event "*** Titled Tuesday Blitz"]
[Site "Chess.com"]
[Date "2020.11.10"]
[Round "5"]
[White "Leo_C"]
[Black "Quiet_Desperation"]
[Result "1-0"]
[WhiteElo "2300"]
[BlackElo "1730"]
[TimeControl "180+1"]
[EndTime "10:56:16 PST"]
[Termination "Leo_C won by resignation"]

1. d4 {[%clk 0:03:00.9]} 1... d5 {[%clk 0:03:00]} 2. c4 {[%clk 0:02:59.8]} 2...
c6 {[%clk 0:03:00.3]} 3. Nc3 {[%clk 0:02:58]} 3... e5 {[%clk 0:02:57.8]} 4. cxd5
{[%clk 0:02:56.5]} 4... cxd5 {[%clk 0:02:52.2]} 5. dxe5 {[%clk 0:02:56.8]} 5...
d4 {[%clk 0:02:20.3]} 6. Ne4 {[%clk 0:02:56.3]} 6... Nc6 {[%clk 0:02:15.3]} 7.
Nf3 {[%clk 0:02:53.3]} 7... Bf5 {[%clk 0:02:14.7]} 8. Ng3 {[%clk 0:02:48.8]}
8... Bg6 {[%clk 0:02:14.1]} 9. a3 {[%clk 0:02:47.6]} 9... Qd7 {[%clk 0:01:56.1]}
10. e3 {[%clk 0:02:46.3]} 10... d3 {[%clk 0:01:54.6]} 11. e4 {[%clk 0:02:41.4]}
11... O-O-O {[%clk 0:01:53.5]} 12. Be3 {[%clk 0:02:40.1]} 12... h5 {[%clk
0:01:46.8]} 13. h4 {[%clk 0:02:31.9]} 13... Nh6 {[%clk 0:01:46.5]} 14. Qa4
{[%clk 0:02:31.2]} 14... Ng4 {[%clk 0:01:37.2]} 15. Rd1 {[%clk 0:02:30.3]} 15...
Nxe3 {[%clk 0:01:36.3]} 16. fxe3 {[%clk 0:02:30.3]} 16... Qg4 {[%clk 0:01:34.1]}
17. Kf2 {[%clk 0:02:25]} 17... Bc5 {[%clk 0:01:31.4]} 18. Rxd3 {[%clk
0:02:09.1]} 18... Rxd3 {[%clk 0:01:24.1]} 19. Bxd3 {[%clk 0:02:10]} 19... Bxe3+
{[%clk 0:01:18.8]} 20. Kxe3 {[%clk 0:02:09.2]} 20... Qxg3 {[%clk 0:01:19.4]} 21.
Rc1 {[%clk 0:01:58.4]} 21... Kb8 {[%clk 0:01:04.9]} 22. Rxc6 {[%clk 0:01:47.5]}
22... bxc6 {[%clk 0:01:02.9]} 23. Qxc6 {[%clk 0:01:48.4]} 23... Qxg2 {[%clk
0:00:54.8]} 24. Qd6+ {[%clk 0:01:44.5]} 24... Ka8 {[%clk 0:00:54.5]} 25. Bc4
{[%clk 0:01:37.6]} 1-0

[Event "*** Titled Tuesday Blitz"]
[Site "Chess.com"]
[Date "2020.11.10"]
[Round "5"]
[White "grunbergmihai"]
[Black "salomez"]
[Result "1-0"]
[WhiteElo "2471"]
[BlackElo "2171"]
[TimeControl "180+1"]
[EndTime "10:56:24 PST"]
[Termination "grunbergmihai won by resignation"]

1. Nf3 {[%clk 0:03:00.9]} 1... Nf6 {[%clk 0:02:58.9]} 2. d4 {[%clk 0:02:56.7]}
2... g6 {[%clk 0:02:55.8]} 3. c4 {[%clk 0:02:57.4]} 3... Bg7 {[%clk 0:02:54.8]}
4. Nc3 {[%clk 0:02:58.3]} 4... d5 {[%clk 0:02:54.2]} 5. e3 {[%clk 0:02:57]} 5...
O-O {[%clk 0:02:53.6]} 6. Qb3 {[%clk 0:02:56.7]} 6... c6 {[%clk 0:02:33.5]} 7.
Ne5 {[%clk 0:02:56.3]} 7... Ne8 {[%clk 0:02:26]} 8. cxd5 {[%clk 0:02:52.4]} 8...
cxd5 {[%clk 0:02:23]} 9. Qxd5 {[%clk 0:02:50.3]} 9... Nd6 {[%clk 0:02:12.7]} 10.
Be2 {[%clk 0:02:39.4]} 10... Be6 {[%clk 0:02:11.9]} 11. Qf3 {[%clk 0:02:39.2]}
11... Nd7 {[%clk 0:02:10.6]} 12. Nxd7 {[%clk 0:02:30.7]} 12... Qxd7 {[%clk
0:02:11.5]} 13. O-O {[%clk 0:02:28.2]} 13... Bc4 {[%clk 0:01:56.6]} 14. Bxc4
{[%clk 0:02:23.9]} 14... Nxc4 {[%clk 0:01:55.5]} 15. b3 {[%clk 0:02:21.5]} 15...
Nd6 {[%clk 0:01:44.2]} 16. Ba3 {[%clk 0:02:20.1]} 16... Rac8 {[%clk 0:01:40.3]}
17. Rac1 {[%clk 0:02:16.5]} 17... b5 {[%clk 0:01:35.6]} 18. Bxd6 {[%clk
0:02:00.4]} 18... exd6 {[%clk 0:01:34.5]} 19. Nd5 {[%clk 0:01:59.4]} 19... Rfe8
{[%clk 0:01:02.5]} 20. h4 {[%clk 0:01:54.6]} 20... h5 {[%clk 0:00:39.1]} 21. g3
{[%clk 0:01:53.5]} 21... Qe6 {[%clk 0:00:35.1]} 22. Nc7 {[%clk 0:01:50.2]} 1-0

[Event "*** Titled Tuesday Blitz"]
[Site "Chess.com"]
[Date "2020.11.10"]
[Round "5"]
[White "Gerodot71"]
[Black "northridgehawk"]
[Result "0-1"]
[WhiteElo "2476"]
[BlackElo "2279"]
[TimeControl "180+1"]
[EndTime "10:56:30 PST"]
[Termination "northridgehawk won by resignation"]

1. d4 {[%clk 0:03:00.9]} 1... Nf6 {[%clk 0:02:57]} 2. c4 {[%clk 0:03:01.1]} 2...
g6 {[%clk 0:02:55.6]} 3. Nc3 {[%clk 0:03:01.6]} 3... d5 {[%clk 0:02:55]} 4. cxd5
{[%clk 0:03:02.5]} 4... Nxd5 {[%clk 0:02:55.2]} 5. e4 {[%clk 0:03:03.4]} 5...
Nxc3 {[%clk 0:02:55.1]} 6. bxc3 {[%clk 0:03:04.3]} 6... Bg7 {[%clk 0:02:55.1]}
7. Nf3 {[%clk 0:03:05.2]} 7... c5 {[%clk 0:02:55.3]} 8. Bb5+ {[%clk 0:03:05.5]}
8... Nd7 {[%clk 0:02:53.7]} 9. O-O {[%clk 0:03:04.3]} 9... O-O {[%clk
0:02:47.8]} 10. Be3 {[%clk 0:03:01.9]} 10... a6 {[%clk 0:02:45.6]} 11. Bd3
{[%clk 0:02:59.7]} 11... b5 {[%clk 0:02:43.9]} 12. Qe2 {[%clk 0:02:57.1]} 12...
Bb7 {[%clk 0:02:43.4]} 13. Rad1 {[%clk 0:02:55.3]} 13... Qa5 {[%clk 0:02:42.6]}
14. Rc1 {[%clk 0:02:46.2]} 14... Rfd8 {[%clk 0:02:40]} 15. Rfd1 {[%clk
0:02:41.4]} 15... Rac8 {[%clk 0:02:36.2]} 16. h4 {[%clk 0:02:39.5]} 16... Nb6
{[%clk 0:02:20]} 17. h5 {[%clk 0:02:15.9]} 17... Na4 {[%clk 0:02:19.3]} 18. Bd2
{[%clk 0:02:06.5]} 18... Nb2 {[%clk 0:02:06.9]} 19. Re1 {[%clk 0:01:39.8]} 19...
Nxd3 {[%clk 0:01:53.8]} 20. Qxd3 {[%clk 0:01:40.7]} 20... Qxa2 {[%clk
0:01:53.4]} 21. d5 {[%clk 0:01:36.9]} 21... Qa5 {[%clk 0:01:31.6]} 22. c4 {[%clk
0:01:24.6]} 22... b4 {[%clk 0:01:20.6]} 23. e5 {[%clk 0:01:23.6]} 23... Qb6
{[%clk 0:01:05.2]} 24. e6 {[%clk 0:01:20.9]} 24... fxe6 {[%clk 0:01:01.9]} 25.
Rxe6 {[%clk 0:01:19.8]} 25... Qxe6 {[%clk 0:01:00.7]} 0-1

[Event "*** Titled Tuesday Blitz"]
[Site "Chess.com"]
[Date "2020.11.10"]
[Round "5"]
[White "dennisodessa"]
[Black "yuki_chess123"]
[Result "0-1"]
[WhiteElo "2456"]
[BlackElo "2225"]
[TimeControl "180+1"]
[EndTime "10:56:35 PST"]
[Termination "yuki_chess123 won by resignation"]

1. d4 {[%clk 0:02:59.4]} 1... Nf6 {[%clk 0:02:58.6]} 2. c4 {[%clk 0:02:59.5]}
2... g6 {[%clk 0:02:59]} 3. Nc3 {[%clk 0:02:58.7]} 3... Bg7 {[%clk 0:02:59.5]}
4. e4 {[%clk 0:02:59]} 4... d6 {[%clk 0:02:59.9]} 5. f3 {[%clk 0:02:58.7]} 5...
O-O {[%clk 0:03:00.4]} 6. Be3 {[%clk 0:02:59.3]} 6... b6 {[%clk 0:03:00.8]} 7.
Bd3 {[%clk 0:02:57.8]} 7... a6 {[%clk 0:03:00.6]} 8. Nge2 {[%clk 0:02:56.7]}
8... c5 {[%clk 0:03:00.9]} 9. Qd2 {[%clk 0:02:56.3]} 9... Nc6 {[%clk 0:03:00.8]}
10. O-O {[%clk 0:02:54]} 10... Ng4 {[%clk 0:02:56]} 11. fxg4 {[%clk 0:02:35.7]}
11... cxd4 {[%clk 0:02:55.6]} 12. Bh6 {[%clk 0:02:34.8]} 12... dxc3 {[%clk
0:02:49.4]} 13. Nxc3 {[%clk 0:02:35.7]} 13... Ne5 {[%clk 0:02:44.8]} 14. Bxg7
{[%clk 0:02:27.4]} 14... Kxg7 {[%clk 0:02:44.6]} 15. h3 {[%clk 0:02:27.8]} 15...
Bb7 {[%clk 0:02:43.9]} 16. b3 {[%clk 0:02:25.7]} 16... Rc8 {[%clk 0:02:42.8]}
17. Nd5 {[%clk 0:02:16.3]} 17... Bxd5 {[%clk 0:02:42.2]} 18. cxd5 {[%clk
0:02:12.4]} 18... b5 {[%clk 0:02:39.6]} 19. Be2 {[%clk 0:02:02.5]} 19... Qb6+
{[%clk 0:02:25.3]} 20. Kh2 {[%clk 0:02:00.8]} 20... Rc7 {[%clk 0:02:25.5]} 21.
g5 {[%clk 0:01:45.3]} 21... Rfc8 {[%clk 0:02:23.4]} 22. Bg4 {[%clk 0:01:43.2]}
22... Rc2 {[%clk 0:02:11.6]} 23. Qf4 {[%clk 0:01:43]} 23... R8c3 {[%clk
0:02:03.7]} 24. Be6 {[%clk 0:01:35.4]} 24... Qe3 {[%clk 0:01:53.4]} 25. Qxf7+
{[%clk 0:01:01.4]} 25... Nxf7 {[%clk 0:01:50.2]} 26. Rxf7+ {[%clk 0:01:02.3]}
26... Kg8 {[%clk 0:01:43.6]} 27. Raf1 {[%clk 0:00:42.9]} 27... Qg3+ {[%clk
0:01:41]} 0-1

[Event "*** Titled Tuesday Blitz"]
[Site "Chess.com"]
[Date "2020.11.10"]
[Round "5"]
[White "Oglob71"]
[Black "tylityli"]
[Result "1-0"]
[WhiteElo "2447"]
[BlackElo "2247"]
[TimeControl "180+1"]
[EndTime "10:56:35 PST"]
[Termination "Oglob71 won by resignation"]

1. d4 {[%clk 0:03:00.9]} 1... Nf6 {[%clk 0:02:32.6]} 2. Nf3 {[%clk 0:03:00.5]}
2... d5 {[%clk 0:02:29.6]} 3. c4 {[%clk 0:02:58.8]} 3... dxc4 {[%clk 0:02:23.4]}
4. e3 {[%clk 0:02:58.2]} 4... a6 {[%clk 0:02:21.6]} 5. Bxc4 {[%clk 0:02:58.1]}
5... b5 {[%clk 0:02:20.9]} 6. Be2 {[%clk 0:02:58.4]} 6... Bb7 {[%clk 0:02:20.3]}
7. a4 {[%clk 0:02:59]} 7... b4 {[%clk 0:02:19.6]} 8. O-O {[%clk 0:02:59.4]} 8...
e6 {[%clk 0:02:19.6]} 9. Nbd2 {[%clk 0:02:59.4]} 9... Nbd7 {[%clk 0:02:18.9]}
10. Nb3 {[%clk 0:02:59.5]} 10... Bd6 {[%clk 0:02:18]} 11. Na5 {[%clk 0:02:57.8]}
11... Qc8 {[%clk 0:02:16.7]} 12. Nxb7 {[%clk 0:02:56.8]} 12... Qxb7 {[%clk
0:02:16.6]} 13. Nd2 {[%clk 0:02:54.5]} 13... O-O {[%clk 0:02:15.4]} 14. Bf3
{[%clk 0:02:52.7]} 14... c6 {[%clk 0:02:13.3]} 15. Nc4 {[%clk 0:02:52]} 15...
Bc7 {[%clk 0:02:12.9]} 16. b3 {[%clk 0:02:51.2]} 16... Nb6 {[%clk 0:02:12.7]}
17. Qc2 {[%clk 0:02:50]} 17... Nfd5 {[%clk 0:02:11]} 18. Na5 {[%clk 0:02:48.2]}
18... Qc8 {[%clk 0:02:07.7]} 19. Nxc6 {[%clk 0:02:47.6]} 19... Bd6 {[%clk
0:01:55.9]} 20. a5 {[%clk 0:02:43.8]} 20... Qc7 {[%clk 0:01:36.8]} 21. axb6
{[%clk 0:02:40.6]} 21... Qxb6 {[%clk 0:01:30.8]} 22. Bxd5 {[%clk 0:02:30.8]}
22... exd5 {[%clk 0:01:29.8]} 23. Ne5 {[%clk 0:02:31.2]} 23... Rac8 {[%clk
0:01:27.3]} 24. Qa2 {[%clk 0:02:30]} 24... Bxe5 {[%clk 0:01:19.3]} 25. dxe5
{[%clk 0:02:29.4]} 25... Rc6 {[%clk 0:01:19.2]} 26. Bb2 {[%clk 0:02:26.8]} 26...
Rg6 {[%clk 0:01:18.4]} 27. Bd4 {[%clk 0:02:25.2]} 27... Qe6 {[%clk 0:01:17.8]}
28. f4 {[%clk 0:02:19.1]} 28... Qg4 {[%clk 0:01:12.6]} 29. Qf2 {[%clk
0:02:15.9]} 29... h5 {[%clk 0:01:06.8]} 30. Qf3 {[%clk 0:02:15.7]} 30... Qf5
{[%clk 0:01:02]} 31. Qxd5 {[%clk 0:02:12]} 31... h4 {[%clk 0:01:00.9]} 32. Qf3
{[%clk 0:02:06.5]} 32... h3 {[%clk 0:00:59.7]} 33. g3 {[%clk 0:02:06.9]} 33...
Qc2 {[%clk 0:00:57.6]} 34. e4 {[%clk 0:02:02.7]} 34... Rc6 {[%clk 0:00:53.2]}
35. Rf2 {[%clk 0:01:56.3]} 1-0

[Event "*** Titled Tuesday Blitz"]
[Site "Chess.com"]
[Date "2020.11.10"]
[Round "5"]
[White "vovachesss"]
[Black "gui_borba"]
[Result "1-0"]
[WhiteElo "2667"]
[BlackElo "2436"]
[TimeControl "180+1"]
[EndTime "10:56:53 PST"]
[Termination "vovachesss won by resignation"]

1. e4 {[%clk 0:03:00.9]} 1... c6 {[%clk 0:03:00]} 2. d4 {[%clk 0:03:00.1]} 2...
d5 {[%clk 0:03:00.9]} 3. exd5 {[%clk 0:03:00.8]} 3... cxd5 {[%clk 0:03:01.8]} 4.
Bd3 {[%clk 0:03:01.1]} 4... Nf6 {[%clk 0:03:02.1]} 5. h3 {[%clk 0:03:01.2]} 5...
Nc6 {[%clk 0:03:02.5]} 6. c3 {[%clk 0:03:01.4]} 6... g6 {[%clk 0:03:03]} 7. Qc2
{[%clk 0:03:00.3]} 7... Bg7 {[%clk 0:03:02]} 8. Nf3 {[%clk 0:03:00.4]} 8... O-O
{[%clk 0:03:02]} 9. O-O {[%clk 0:03:01.1]} 9... Qc7 {[%clk 0:02:57.7]} 10. Re1
{[%clk 0:03:00.7]} 10... Bd7 {[%clk 0:02:45.1]} 11. Bg5 {[%clk 0:02:53.5]} 11...
Rfc8 {[%clk 0:02:43.6]} 12. Re2 {[%clk 0:02:26.5]} 12... e6 {[%clk 0:02:29.5]}
13. Qd2 {[%clk 0:01:58.7]} 13... Rab8 {[%clk 0:02:21]} 14. a4 {[%clk 0:01:56]}
14... a6 {[%clk 0:02:21.2]} 15. Na3 {[%clk 0:01:56.6]} 15... Na5 {[%clk
0:02:19.7]} 16. Bf4 {[%clk 0:01:53.7]} 16... Qc6 {[%clk 0:01:36.3]} 17. Bxb8
{[%clk 0:01:52.5]} 17... Rxb8 {[%clk 0:01:37.2]} 18. Ne5 {[%clk 0:01:45.9]}
18... Qxa4 {[%clk 0:01:32]} 19. Nc2 {[%clk 0:01:33.7]} 19... Qb3 {[%clk
0:01:05.6]} 20. Rxa5 {[%clk 0:01:32.4]} 20... Qxb2 {[%clk 0:01:06.2]} 21. Nxd7
{[%clk 0:01:26.2]} 21... Nxd7 {[%clk 0:01:06.2]} 22. Nb4 {[%clk 0:01:24.9]}
22... Qb3 {[%clk 0:01:03.1]} 23. Re1 {[%clk 0:01:18.8]} 23... Nb6 {[%clk
0:00:47.8]} 24. Rb1 {[%clk 0:01:10.2]} 24... Nc4 {[%clk 0:00:48.2]} 25. Qc1
{[%clk 0:01:05.3]} 1-0

[Event "*** Titled Tuesday Blitz"]
[Site "Chess.com"]
[Date "2020.11.10"]
[Round "5"]
[White "elisak43"]
[Black "Vanina1989"]
[Result "0-1"]
[WhiteElo "2512"]
[BlackElo "2649"]
[TimeControl "180+1"]
[EndTime "10:57:00 PST"]
[Termination "Vanina1989 won on time"]

1. e4 {[%clk 0:03:00.9]} 1... c6 {[%clk 0:02:56.3]} 2. d4 {[%clk 0:03:00.3]}
2... d5 {[%clk 0:02:55.9]} 3. exd5 {[%clk 0:03:01.2]} 3... cxd5 {[%clk
0:02:55.6]} 4. Bd3 {[%clk 0:03:02.1]} 4... Nc6 {[%clk 0:02:55.2]} 5. c3 {[%clk
0:03:02.5]} 5... Nf6 {[%clk 0:02:54.6]} 6. Bg5 {[%clk 0:03:02.7]} 6... Bg4
{[%clk 0:02:53.2]} 7. Ne2 {[%clk 0:03:01.3]} 7... e6 {[%clk 0:02:52.6]} 8. f3
{[%clk 0:02:59.6]} 8... Bh5 {[%clk 0:02:52.1]} 9. Nf4 {[%clk 0:02:59.3]} 9...
Bg6 {[%clk 0:02:52.1]} 10. Nxg6 {[%clk 0:02:53]} 10... hxg6 {[%clk 0:02:51.8]}
11. Nd2 {[%clk 0:02:49.4]} 11... Bd6 {[%clk 0:02:51.6]} 12. Qb3 {[%clk 0:02:46]}
12... Qc7 {[%clk 0:02:51.5]} 13. O-O-O {[%clk 0:02:44.7]} 13... Nxd4 {[%clk
0:02:50.9]} 14. Qa4+ {[%clk 0:02:40.2]} 14... Nc6 {[%clk 0:02:51.1]} 15. c4
{[%clk 0:02:33.1]} 15... dxc4 {[%clk 0:02:34.9]} 16. Nxc4 {[%clk 0:02:04.8]}
16... Bf4+ {[%clk 0:02:34.3]} 17. Bxf4 {[%clk 0:02:04.5]} 17... Qxf4+ {[%clk
0:02:34.4]} 18. Kb1 {[%clk 0:02:05.4]} 18... O-O {[%clk 0:02:33.7]} 19. Qb3
{[%clk 0:01:50.6]} 19... Rab8 {[%clk 0:02:26.4]} 20. h4 {[%clk 0:01:18.7]} 20...
b5 {[%clk 0:02:23.9]} 21. Nd2 {[%clk 0:01:13.3]} 21... Nd4 {[%clk 0:02:23.9]}
22. Qb4 {[%clk 0:01:09.3]} 22... Nd5 {[%clk 0:02:22.5]} 23. Qa5 {[%clk
0:00:57.9]} 23... Ne3 {[%clk 0:02:22.7]} 24. Rc1 {[%clk 0:00:49.5]} 24... Nxg2
{[%clk 0:02:21.8]} 25. h5 {[%clk 0:00:44.6]} 25... gxh5 {[%clk 0:02:21.6]} 26.
Rxh5 {[%clk 0:00:20]} 26... g6 {[%clk 0:02:21]} 27. Rhc5 {[%clk 0:00:17.6]}
27... Rfd8 {[%clk 0:02:16.8]} 28. Ne4 {[%clk 0:00:15.4]} 28... Nxf3 {[%clk
0:02:15.9]} 29. Qc3 {[%clk 0:00:04.3]} 29... e5 {[%clk 0:02:16.3]} 30. Rc6
{[%clk 0:00:03.2]} 30... Nge1 {[%clk 0:02:11.2]} 31. Nf6+ {[%clk 0:00:03.3]}
31... Kg7 {[%clk 0:02:11]} 32. Ne4 {[%clk 0:00:01.8]} 32... Rxd3 {[%clk
0:02:09.3]} 33. Rxg6+ {[%clk 0:00:01.7]} 33... Kxg6 {[%clk 0:02:06]} 34. Qc6+
{[%clk 0:00:01.7]} 34... Kg7 {[%clk 0:02:06.3]} 0-1

[Event "*** Titled Tuesday Blitz"]
[Site "Chess.com"]
[Date "2020.11.10"]
[Round "5"]
[White "kingofthenil"]
[Black "eCztery"]
[Result "1-0"]
[WhiteElo "2679"]
[BlackElo "2302"]
[TimeControl "180+1"]
[EndTime "10:57:05 PST"]
[Termination "kingofthenil won on time"]

1. e4 {[%clk 0:03:00.9]} 1... c5 {[%clk 0:02:17.6]} 2. d3 {[%clk 0:02:59.8]}
2... Nc6 {[%clk 0:02:16]} 3. g3 {[%clk 0:02:59.3]} 3... g6 {[%clk 0:02:15.2]} 4.
Bg2 {[%clk 0:02:59.3]} 4... Bg7 {[%clk 0:02:14.9]} 5. f4 {[%clk 0:03:00.2]} 5...
d6 {[%clk 0:02:11.5]} 6. Nf3 {[%clk 0:02:59.7]} 6... e5 {[%clk 0:02:07.1]} 7.
Nc3 {[%clk 0:02:54.3]} 7... Nd4 {[%clk 0:01:57.5]} 8. O-O {[%clk 0:02:53.9]}
8... Ne7 {[%clk 0:01:42.2]} 9. f5 {[%clk 0:02:51.4]} 9... gxf5 {[%clk 0:01:35]}
10. Nh4 {[%clk 0:02:51.6]} 10... f4 {[%clk 0:01:22.3]} 11. gxf4 {[%clk
0:02:48.6]} 11... Rg8 {[%clk 0:00:56.1]} 12. f5 {[%clk 0:02:45]} 12... f6 {[%clk
0:00:53.2]} 13. Qh5+ {[%clk 0:02:44]} 13... Kd7 {[%clk 0:00:43]} 14. Qxh7 {[%clk
0:02:44.1]} 14... Qf8 {[%clk 0:00:31.6]} 15. Qh5 {[%clk 0:02:35.1]} 15... Nxc2
{[%clk 0:00:26.7]} 16. Rb1 {[%clk 0:02:29.7]} 16... Kc7 {[%clk 0:00:24.7]} 17.
Bd2 {[%clk 0:02:26.7]} 17... Nd4 {[%clk 0:00:23.3]} 18. Rbc1 {[%clk 0:02:25.1]}
18... a6 {[%clk 0:00:21]} 19. b4 {[%clk 0:02:24.4]} 19... Rh8 {[%clk 0:00:14.3]}
20. Qg4 {[%clk 0:02:24.3]} 20... Bh6 {[%clk 0:00:07.4]} 21. Bxh6 {[%clk
0:02:02.3]} 21... Qxh6 {[%clk 0:00:08.3]} 22. Nf3 {[%clk 0:02:03.1]} 22... Nxf3+
{[%clk 0:00:07.8]} 23. Qxf3 {[%clk 0:02:04]} 23... Qxh2+ {[%clk 0:00:07]} 24.
Kf2 {[%clk 0:02:04.6]} 24... Qh4+ {[%clk 0:00:07.8]} 25. Kg1 {[%clk 0:02:01.4]}
25... Bd7 {[%clk 0:00:07.3]} 26. bxc5 {[%clk 0:02:00.3]} 26... Qh2+ {[%clk
0:00:05.6]} 27. Kf2 {[%clk 0:02:00.4]} 27... Qh4+ {[%clk 0:00:06]} 28. Ke2
{[%clk 0:01:59.4]} 28... dxc5 {[%clk 0:00:04.7]} 29. Nd5+ {[%clk 0:01:53.9]}
29... Nxd5 {[%clk 0:00:04.5]} 30. Rxc5+ {[%clk 0:01:54.5]} 30... Kb6 {[%clk
0:00:03.2]} 31. Rxd5 {[%clk 0:01:53.8]} 1-0